bitfinex/quotes_SOLUSD_20250714
["timestamp","ask_amount","ask_price","bid_price","bid_amount"]
[1752451726542,25.56783443,160.57,160.56,59.08]
[1752451726722,8.78315046,160.57,160.56,59.08]
[1752451726925,4.62743365,160.57,160.56,59.08]
[1752451728034,4.63398279,160.57,160.56,59.08]
[1752451728856,22.07866676,160.57,160.56,58.52]
[1752451729146,22.08000603,160.57,160.56,58.52]
[1752451731755,26.24977515,160.57,160.56,58.52]
[1752451732161,26.24977515,160.57,160.56,26.9]
[1752451732335,26.24977515,160.57,160.56,58.52]
[1752451734129,26.24977515,160.57,160.56,0.06]
[1752451734347,26.24977515,160.57,160.56,31.68]
[1752451735261,30.87975078,160.57,160.56,31.68]
[1752451735656,26.24977515,160.57,160.56,31.68]
[1752451736048,26.24351084,160.57,160.56,31.68]
[1752451736752,21.61445309,160.57,160.56,31.68]
[1752451736959,26.24224203,160.57,160.56,31.68]
[1752451737353,26.24136458,160.57,160.56,31.68]
[1752451740565,26.24136458,160.57,160.56,0.06]
[1752451740748,30.86753551,160.57,160.56,31.68]
[1752451740949,26.24136458,160.57,160.56,31.68]
[1752451741365,30.86689349,160.57,160.56,31.68]
[1752451741864,30.86550984,160.57,160.56,31.68]
[1752451742457,30.86550984,160.57,160.56,0.06]
[1752451742649,30.86550984,160.57,160.56,31.68]
[1752451744649,16.78468397,160.53,160.52,0.1]
[1752451744962,21.40874353,160.53,160.52,0.1]
[1752451745160,22.08873784,160.53,160.52,0.1]
[1752451745355,26.24954677,160.53,160.52,0.1]
[1752451745873,26.24954677,160.53,160.52,31.72]
[1752451746171,22.08873784,160.53,160.52,31.72]
[1752451746545,26.25028666,160.53,160.52,31.72]
[1752451747651,21.40873784,160.53,160.52,31.72]
[1752451747853,21.40873784,160.53,160.52,32.28]
[1752451749570,21.40873784,160.53,160.52,31.72]
[1752451750473,4.62327085,160.53,160.52,31.72]
[1752451753058,8.78872878,160.53,160.52,31.72]
[1752451753374,16.78468397,160.54,160.52,31.72]
[1752451753564,9.47375723,160.53,160.52,31.72]
[1752451753774,22.09221464,160.53,160.52,31.8]
[1752451753960,25.57831548,160.53,160.52,31.8]
[1752451756284,26.25831548,160.53,160.52,31.8]
[1752451756785,26.2616636,160.53,160.52,31.8]
[1752451758255,25.5816636,160.53,160.52,31.8]
[1752451758658,26.2616636,160.53,160.52,31.8]
[1752451760177,25.5816636,160.53,160.52,31.8]
[1752451761673,25.5816636,160.53,160.52,32.36]
[1752451762053,4.63075307,160.53,160.52,32.36]
[1752451764086,16.81468397,160.56,160.52,32.36]
[1752451764286,0.03,160.56,160.53,0.56]
[1752451765870,16.81468397,160.56,160.53,0.56]
[1752451766870,4.64153286,160.55,160.53,0.56]
[1752451767067,4.64153286,160.54,160.53,0.56]
[1752451767266,0.03,160.56,160.55,1.5651]
[1752451767577,0.03,160.56,160.55,2.1251]
[1752451773103,0.03,160.59,160.55,2.1251]
[1752451773403,0.03,160.63,160.57,7.7797]
[1752451773777,0.03,160.63,160.58,0.53]
[1752451774186,0.03,160.63,160.59,31.68]
[1752451774373,0.03,160.63,160.6,0.53]
[1752451779084,0.03,160.63,160.61,31.66]
[1752451780898,0.03,160.63,160.61,32.19]
[1752451781081,0.03,160.63,160.62,0.53]
[1752451788015,0.03,160.63,160.61,31.66]
[1752451788191,17.51468397,160.63,160.62,31.62]
[1752451789519,0.03,160.63,160.62,31.62]
[1752451791411,0.73,160.63,160.62,31.62]
[1752451793499,0.03,160.63,160.62,31.62]
[1752451794190,16.81468397,160.63,160.62,31.62]
[1752451795397,0.03,160.63,160.62,31.62]
[1752451800830,16.81468397,160.63,160.62,31.62]
[1752451802009,0.03,160.63,160.62,31.62]
[1752451802220,0.03,160.63,160.62,32.15]
[1752451803422,0.03,160.63,160.57,7.7797]
[1752451803642,0.72,160.63,160.58,32.13]
[1752451803839,0.03,160.63,160.58,32.13]
[1752451804138,0.03,160.63,160.59,0.53]
[1752451805244,0.72,160.63,160.59,0.53]
[1752451805423,0.03,160.63,160.6,0.53]
[1752451805623,0.03,160.63,160.61,0.53]
[1752451805939,0.03,160.63,160.62,31.6]
[1752451806120,0.03,160.63,160.62,32.13]
[1752451807244,0.03,160.63,160.62,31.6]
[1752451808840,0.03,160.63,160.61,27.37]
[1752451809141,0.03,160.63,160.62,31.6]
[1752451809434,0.03,160.63,160.61,27.37]
[1752451809640,0.03,160.63,160.62,31.6]
[1752451810143,0.72,160.63,160.62,31.6]
[1752451810635,0.72,160.63,160.61,26.84]
[1752451810838,0.03,160.63,160.62,31.6]
[1752451811538,0.03,160.63,160.61,26.84]
[1752451811539,4.89441053,160.63,160.61,26.84]
[1752451811743,168.3490945,160.62,160.61,26.84]
[1752451812247,168.3490945,160.62,160.61,58.44]
[1752451815342,168.3490945,160.62,160.61,26.84]
[1752451815543,168.3490945,160.62,160.61,58.44]
[1752451818834,0.03,160.63,160.61,58.97]
[1752451819341,0.03,160.63,160.61,58.44]
[1752451822250,0.69,160.62,160.61,26.84]
[1752451822552,17.47468397,160.62,160.61,58.44]
[1752451822726,21.658852,160.62,160.61,58.44]
[1752451822930,21.658852,160.62,160.61,26.84]
[1752451823148,21.658852,160.62,160.61,58.44]
[1752451825049,21.658852,160.62,160.61,31.6]
[1752451827654,16.78468397,160.61,160.59,0.06]
[1752451827829,17.47468397,160.61,160.6,31.6]
[1752451828026,16.78468397,160.61,160.6,31.6]
[1752451828439,17.47468397,160.61,160.6,31.6]
[1752451829359,21.6576752,160.61,160.6,31.6]
[1752451830952,21.6576752,160.61,160.59,0.06]
[1752451831160,17.47468397,160.61,160.6,31.6]
[1752451831334,21.65754673,160.61,160.6,31.6]
[1752451831966,21.65754673,160.61,160.59,0.06]
[1752451832263,17.47468397,160.61,160.6,31.6]
[1752451832438,146.7,160.62,160.6,32.13]
[1752451832863,146.7,160.62,160.6,31.6]
[1752451836063,147.41,160.62,160.6,31.6]
[1752451838683,146.7,160.62,160.6,31.6]
[1752451839760,146.7,160.62,160.61,0.53]
[1752451840147,0.03,160.63,160.61,0.53]
[1752451840345,0.03,160.63,160.62,0.53]
[1752451843267,0.03,160.63,160.62,7.21858747]
[1752451843472,0.03,160.63,160.62,6.596]
[1752451844574,0.03,160.63,160.62,8.1843]
[1752451846946,0.03,160.63,160.62,39.7843]
[1752451850466,0.03,160.63,160.62,66.6243]
[1752451858794,0.03,160.63,160.62,76.6243]
[1752451860286,0.03,160.63,160.62,26.84]
[1752451860487,0.03,160.63,160.62,58.42]
[1752451860872,0.03,160.63,160.62,26.84]
[1752451861083,0.03,160.63,160.62,58.42]
[1752451865999,0.03,160.63,160.62,58.95]
[1752451867293,0.03,160.63,160.62,27.37]
[1752451867505,0.03,160.63,160.62,58.42]
[1752451870068,0.72,160.63,160.62,26.84]
[1752451870282,0.72,160.63,160.62,58.42]
[1752451871086,0.03,160.63,160.62,58.42]
[1752451873706,0.03,160.63,160.62,58.95]
[1752451874194,0.03,160.63,160.62,58.42]
[1752451876299,0.03,160.63,160.62,58.95]
[1752451881403,0.03,160.63,160.62,68.95]
[1752451881603,0.03,160.63,160.62,69.57258747]
[1752451883487,0.03,160.63,160.62,96.38268747]
[1752451883813,0.03,160.63,160.62,113.16737144]
[1752451884611,0.03,160.63,160.62,115.03513386]
[1752451885001,0.03,160.64,160.63,28.66]
[1752451885206,0.03,160.64,160.63,29.19]
[1752451891519,0.03,160.64,160.63,45.97468397]
[1752451892517,0.03,160.64,160.63,47.84233011]
[1752451894004,0.03,160.64,160.63,137.44233011]
[1752451894917,0.03,160.64,160.63,140.59503893]
[1752451895518,0.03,160.64,160.63,138.72739279]
[1752451895816,0.03,160.64,160.63,140.59503893]
[1752451896816,0.03,160.66,160.65,45.44468397]
[1752451897018,0.03,160.66,160.65,175.37849164]
[1752451897199,0.03,160.66,160.65,175.28602043]
[1752451899414,0.03,160.66,160.65,177.15343406]
[1752451910431,0.03,160.69,160.68,78.13703896]
[1752451910625,0.03,160.69,160.68,46.06703896]
[1752451910948,0.72,160.69,160.68,77.60703896]
[1752451911224,0.72,160.69,160.68,76.98468397]
[1752451911528,0.03,160.69,160.68,76.98468397]
[1752451913731,0.03,160.69,160.68,77.60703896]
[1752451913943,0.03,160.69,160.68,78.13703896]
[1752451914520,0.03,160.69,160.68,169.57410393]
[1752451914723,0.03,160.69,160.68,175.4413854]
[1752451914915,0.03,160.69,160.68,173.57432043]
[1752451916729,0.03,160.69,160.68,175.4413854]
[1752451917326,0.03,160.69,160.68,173.57432043]
[1752451921432,0.03,160.69,160.68,166.55468397]
[1752451921746,0.75,160.69,160.68,166.55468397]
[1752451922040,0.75,160.69,160.68,31.54]
[1752451922337,0.75,160.69,160.68,41.54]
[1752451924248,0.75,160.69,160.68,57.54]
[1752451927647,0.75,160.69,160.68,31.54]
[1752451931933,0.75,160.69,160.68,58.36]
[1752451938865,0.03,160.69,160.68,68.36]
[1752451940559,0.03,160.69,160.68,199.76449722]
[1752451940749,0.03,160.69,160.68,206.25413368]
[1752451945058,0.03,160.69,160.68,208.12119865]
[1752451945744,0.03,160.69,160.68,214.43007789]
[1752451946449,0.03,160.69,160.68,221.05357789]
[1752451947451,0.03,160.7,160.69,51.93432043]
[1752451947668,0.03,160.7,160.69,154.82532918]
[1752451947967,0.03,160.7,160.69,154.20301292]
[1752451950067,0.03,160.7,160.69,187.5899617]
[1752451950372,0.03,160.71,160.69,187.5899617]
[1752451950373,0.03,160.71,160.7,47.06018397]
[1752451950579,0.03,160.71,160.7,66.84079045]
[1752451951941,0.03,160.71,160.7,68.70762305]
[1752451953259,0.03,160.78,160.75,26.78468397]
[1752451953577,0.03,160.78,160.75,167.09676795]
[1752451953766,0.03,160.78,160.75,167.00468397]
[1752451955371,0.03,160.78,160.75,168.87093591]
[1752451956459,0.03,160.78,160.75,135.48468397]
[1752451956661,0.03,160.78,160.75,167.00468397]
[1752451956859,0.03,160.78,160.75,168.87093591]
[1752451958270,0.03,160.78,160.75,170.38543591]
[1752451959188,0.03,160.78,160.77,26.78468397]
[1752451959381,0.03,160.78,160.77,58.30468397]
[1752451959885,0.03,160.78,160.77,78.11669056]
[1752451960575,0.03,160.78,160.77,83.94650381]
[1752451961088,0.03,160.78,160.77,232.01252358]
[1752451961291,0.03,160.78,160.77,231.39051699]
[1752451963674,0.03,160.78,160.77,237.88015345]
[1752451964992,0.03,160.81,160.8,116.17468397]
[1752451965185,0.03,160.81,160.8,134.83468397]
[1752451965506,0.75,160.81,160.8,166.33468397]
[1752451967777,0.03,160.81,160.8,166.33468397]
[1752451968598,0.75,160.81,160.8,166.33468397]
[1752451970800,0.03,160.81,160.8,166.33468397]
[1752451972601,0.03,160.81,160.8,168.73035561]
[1752451972778,0.03,160.81,160.8,181.52887131]
[1752451972977,0.03,160.81,160.8,183.04117131]
[1752451973179,0.2,160.84,160.83,115.94468397]
[1752451973391,0.2,160.84,160.83,166.10468397]
[1752451974208,0.2,160.84,160.83,167.9700076]
[1752451974382,0.2,160.84,160.83,168.5000076]
[1752451974786,0.2,160.84,160.83,173.56753969]
[1752451974996,0.2,160.84,160.83,171.70221606]
[1752451975304,0.2,160.84,160.83,171.17221606]
[1752451975510,0.2,160.84,160.83,174.2915066]
[1752451976486,0.92,160.84,160.83,142.7915066]
[1752451976679,0.92,160.84,160.83,174.2915066]
[1752451977504,0.2,160.84,160.83,174.2915066]
[1752451980694,0.2,160.84,160.83,115.94468397]
[1752451980695,0.92,160.84,160.83,115.94468397]
[1752451981001,0.92,160.84,160.83,89.16]
[1752451981178,0.92,160.84,160.83,31.5]
[1752451982883,0.92,160.84,160.83,58.3]
[1752451984411,0.92,160.84,160.83,85.08468397]
[1752451984620,0.92,160.84,160.83,75.08468397]
[1752451984909,0.2,160.84,160.83,85.08468397]
[1752451985508,0.2,160.84,160.83,104.36645851]
[1752451985809,0.2,160.84,160.83,193.52645851]
[1752451986108,0.2,160.84,160.83,193.43468397]
[1752451987813,0.2,160.84,160.83,192.90468397]
[1752451991509,0.9,160.84,160.83,192.90468397]
[1752451991815,0.9,160.84,160.83,197.90053403]
[1752451992921,0.2,160.84,160.83,197.90053403]
[1752451994996,0.2,160.84,160.83,179.24053403]
[1752451995195,0.9,160.84,160.83,179.24053403]
[1752452002719,0.9,160.84,160.83,179.30053403]
[1752452003323,0.9,160.84,160.83,169.30053403]
[1752452009314,0.9,160.84,160.83,179.30053403]
[1752452011830,0.9,160.84,160.83,197.96053403]
[1752452014816,0.9,160.84,160.83,179.30053403]
[1752452021517,0.9,160.84,160.83,179.28053403]
[1752452023010,0.2,160.84,160.83,179.28053403]
[1752452025837,0.86,160.84,160.83,179.28053403]
[1752452026937,0.86,160.84,160.83,177.48246876]
[1752452028548,0.2,160.84,160.83,177.48246876]
[1752452030332,0.86,160.84,160.83,177.48246876]
[1752452031933,0.86,160.84,160.83,196.14246876]
[1752452034447,0.86,160.84,160.83,177.48246876]
[1752452036739,0.2,160.84,160.83,177.48246876]
[1752452037240,0.2,160.84,160.83,196.67246876]
[1752452037427,0.2,160.84,160.83,209.46360792]
[1752452039836,0.2,160.84,160.83,211.32893155]
[1752452040552,0.2,160.84,160.83,209.46360792]
[1752452040745,0.2,160.84,160.83,217.81856801]
[1752452040934,0.2,160.84,160.83,229.9572605]
[1752452041136,0.03,160.87,160.86,134.17468397]
[1752452041359,0.03,160.87,160.86,188.24771137]
[1752452041531,0.03,160.87,160.86,188.77771137]
[1752452043338,0.03,160.87,160.86,181.62360792]
[1752452047260,0.03,160.87,160.86,184.01858367]
[1752452048057,0.03,160.87,160.86,182.15360792]
[1752452048668,0.03,160.87,160.86,184.01858367]
[1752452049868,0.03,160.87,160.86,196.95156636]
[1752452050983,0.03,160.87,160.86,190.94633843]
[1752452053788,0.03,160.88,160.87,136.00954379]
[1752452053970,0.03,160.88,160.87,177.45323981]
[1752452055583,0.03,160.88,160.87,175.58837999]
[1752452058372,0.03,160.88,160.87,177.45323981]
[1752452058970,0.03,160.88,160.87,177.98323981]
[1752452059283,0.13,160.91,160.9,52.78468397]
[1752452059591,0.13,160.91,160.9,177.91653198]
[1752452062487,0.13,160.91,160.9,196.57653198]
[1752452063888,0.8,160.91,160.9,196.57653198]
[1752452067070,0.13,160.91,160.9,196.57653198]
[1752452067594,0.8,160.91,160.9,196.57653198]
[1752452067768,0.8,160.91,160.9,177.91653198]
[1752452070998,0.8,160.91,160.9,176.1197946]
[1752452071895,0.8,160.91,160.9,131.48468397]
[1752452072081,0.8,160.91,160.9,140.1197946]
[1752452072495,0.8,160.91,160.9,176.1197946]
[1752452073970,0.8,160.91,160.9,202.8997946]
[1752452075283,0.8,160.91,160.9,192.8997946]
[1752452075501,0.8,160.91,160.9,202.8997946]
[1752452075700,0.8,160.91,160.9,192.8997946]
[1752452075898,0.8,160.91,160.9,202.8997946]
[1752452076396,0.13,160.91,160.9,176.8997946]
[1752452079219,0.13,160.91,160.9,183.25960785]
[1752452079391,0.13,160.91,160.9,203.78411996]
[1752452079576,0.13,160.91,160.9,223.18866593]
[1752452079780,0.13,160.91,160.9,231.97931917]
[1752452079987,0.13,160.91,160.9,198.05754517]
[1752452080311,0.13,160.91,160.9,200.53932017]
[1752452080503,0.13,160.91,160.9,231.97932017]
[1752452081208,0.13,160.91,160.9,229.49754517]
[1752452081414,0.13,160.91,160.9,216.71710265]
[1752452081726,0.13,160.91,160.9,214.32259054]
[1752452083102,0.13,160.91,160.9,214.85259054]
[1752452085727,0.13,160.91,160.9,216.71710265]
[1752452085895,0.13,160.91,160.9,229.49754517]
[1752452087206,0.13,160.91,160.9,214.32259054]
[1752452088440,0.13,160.91,160.9,216.18710265]
[1752452088633,0.13,160.91,160.9,216.71710265]
[1752452088815,0.13,160.91,160.9,216.18710265]
[1752452090717,0.13,160.91,160.9,229.49754517]
[1752452090916,0.13,160.91,160.9,231.97962717]
[1752452094019,0.00613622,160.91,160.9,231.97962717]
[1752452095023,0.7,160.96,160.95,26.78468397]
[1752452095243,0.7,160.96,160.95,162.8741009]
[1752452096027,0.73,160.98,160.97,36.0]
[1752452096239,0.03,160.98,160.97,159.30897441]
[1752452096918,0.73,160.98,160.97,159.30897441]
[1752452097119,0.73,160.98,160.97,164.28547994]
[1752452097745,0.73,160.98,160.97,167.34465138]
[1752452099552,0.73,160.98,160.97,162.36814585]
[1752452099842,0.73,160.98,160.97,117.88897441]
[1752452100048,0.73,160.98,160.97,166.09365838]
[1752452100541,0.73,160.98,160.97,176.09365838]
[1752452101047,0.73,160.98,160.97,166.09365838]
[1752452101247,0.73,160.98,160.97,176.09365838]
[1752452102555,0.73,160.98,160.97,166.09365838]
[1752452102752,0.73,160.98,160.97,192.85365838]
[1752452105264,0.73,160.98,160.97,221.51365838]
[1752452107043,0.73,160.98,160.97,223.3051497]
[1752452107756,0.73,160.98,160.97,204.6451497]
[1752452110866,0.03,160.98,160.97,204.6451497]
[1752452111372,0.03,160.98,160.97,223.3051497]
[1752452111544,0.03,160.98,160.97,204.6451497]
[1752452112742,0.72,160.98,160.97,204.6451497]
[1752452114439,0.03,160.98,160.97,230.63545296]
[1752452114644,0.03,160.98,160.97,243.08936966]
[1752452114867,0.03,160.98,160.97,240.69566835]
[1752452115076,0.03,160.98,160.97,241.22566835]
[1752452116763,0.03,160.98,160.97,240.69566835]
[1752452117664,0.03,160.98,160.97,209.27566835]
[1752452117864,0.03,160.98,160.97,240.69566835]
[1752452118166,0.72,160.98,160.97,235.7090664]
[1752452118469,0.03,160.98,160.97,240.69566835]
[1752452118765,0.03,160.98,160.97,241.22566835]
[1752452119464,0.03,160.98,160.97,209.80566835]
[1752452119674,0.03,160.98,160.97,241.22566835]
[1752452119869,0.03,160.98,160.97,243.08936966]
[1752452120183,0.03,160.98,160.97,235.7090664]
[1752452120387,0.72,160.98,160.97,235.7090664]
[1752452121353,0.72,160.98,160.97,143.05496295]
[1752452121552,0.72,160.98,160.97,137.2251497]
[1752452121760,0.72,160.98,160.97,168.6451497]
[1752452124576,0.72,160.98,160.97,178.6451497]
[1752452125273,0.72,160.98,160.97,168.6451497]
[1752452125475,0.72,160.98,160.97,151.86046573]
[1752452127266,0.72,160.98,160.97,31.74660195]
[1752452127459,0.72,160.98,160.97,57.74660195]
[1752452127781,0.72,160.98,160.97,89.16660195]
[1752452127979,0.72,160.98,160.97,63.16660195]
[1752452128181,0.72,160.98,160.97,89.16660195]
[1752452128482,0.72,160.98,160.97,105.95128592]
[1752452129374,0.72,160.98,160.97,79.95128592]
[1752452130383,0.03,160.98,160.97,89.95128592]
[1752452130680,0.03,160.98,160.97,203.83068381]
[1752452131058,0.03,160.98,160.97,205.69438512]
[1752452131260,0.03,160.98,160.97,224.30438512]
[1752452131864,0.03,160.98,160.97,222.44068381]
[1752452132064,0.03,160.98,160.97,221.91068381]
[1752452132570,0.68,160.98,160.97,198.31408186]
[1752452132774,0.68,160.98,160.97,192.00520262]
[1752452132974,0.68,160.98,160.97,185.38109917]
[1752452133958,0.68,160.98,160.97,175.38109917]
[1752452134769,0.68,160.98,160.97,143.96109917]
[1752452134967,0.68,160.98,160.97,175.38109917]
[1752452135973,0.68,160.98,160.97,158.5964152]
[1752452136227,0.68,160.98,160.97,152.76660195]
[1752452137003,0.68,160.98,160.97,147.78]
[1752452137285,0.68,160.98,160.97,152.76660195]
[1752452138782,0.68,160.98,160.97,63.16660195]
[1752452138959,0.68,160.98,160.97,89.16660195]
[1752452139365,0.68,160.98,160.97,84.18]
[1752452139572,2.274,160.98,160.97,63.16660195]
[1752452140396,0.68,160.98,160.97,63.16660195]
[1752452147693,0.68,160.98,160.97,89.16660195]
[1752452148013,0.03,160.98,160.97,89.16660195]
[1752452149217,0.03,160.98,160.97,94.9964152]
[1752452151516,0.03,160.98,160.97,184.5964152]
[1752452151815,0.03,160.98,160.97,201.38109917]
[1752452155706,0.68,160.98,160.97,201.38109917]
[1752452156419,0.68,160.98,160.97,184.5964152]
[1752452160124,0.68,160.98,160.97,148.18981325]
[1752452160325,0.68,160.98,160.97,178.76660195]
[1752452163313,0.68,160.98,160.97,89.16660195]
[1752452172937,0.68,160.98,160.97,52.76]
[1752452173236,0.68,160.98,160.97,89.16660195]
[1752452174123,0.68,160.98,160.97,58.18]
[1752452174308,0.68,160.98,160.97,63.16660195]
[1752452185243,0.68,160.98,160.97,26.76]
[1752452185430,8.6212,160.98,160.97,58.18]
[1752452185625,2.2285,160.98,160.97,63.16660195]
[1752452186530,0.68,160.98,160.97,63.16660195]
[1752452191251,0.03,160.98,160.97,63.16660195]
[1752452194640,0.03,160.98,160.97,89.16660195]
[1752452195049,0.03,160.98,160.97,89.69660195]
[1752452196455,0.03,160.98,160.97,107.8380156]
[1752452197264,0.03,160.98,160.97,102.85141365]
[1752452200151,0.03,160.98,160.97,102.32141365]
[1752452200955,0.03,160.98,160.97,102.85141365]
[1752452207644,0.03,160.98,160.97,102.32141365]
[1752452207964,0.73,160.98,160.97,57.74660195]
[1752452208142,0.73,160.98,160.97,31.74660195]
[1752452208483,0.73,160.98,160.97,63.16660195]
[1752452208954,0.73,160.98,160.97,58.18]
[1752452209166,0.73,160.98,160.97,63.16660195]
[1752452210858,0.73,160.98,160.97,58.18]
[1752452211059,17.51468397,160.98,160.97,26.76]
[1752452211277,17.51468397,160.98,160.97,58.18]
[1752452215969,0.73,160.98,160.97,63.16660195]
[1752452219346,0.03,160.98,160.97,63.16660195]
[1752452220544,0.73,160.98,160.97,63.16660195]
[1752452222673,25.43298397,160.98,160.97,26.78]
[1752452222972,25.43298397,160.98,160.97,58.2]
[1752452225671,0.73,160.98,160.97,63.18660195]
[1752452233083,0.03,160.98,160.97,63.18660195]
[1752452236064,0.03,160.98,160.97,63.71660195]
[1752452239007,0.03,160.98,160.97,89.71660195]
[1752452239730,0.74,160.98,160.97,115.64]
[1752452239894,0.74,160.98,160.97,94.62660195]
[1752452248929,17.52468397,160.98,160.97,89.64]
[1752452252007,17.52468397,160.98,160.97,94.62660195]
[1752452255144,0.74,160.98,160.97,94.62660195]
[1752452259349,0.03,160.98,160.97,95.15660195]
[1752452262140,0.03,160.98,160.97,142.92788787]
[1752452262453,0.03,160.98,160.97,157.77721068]
[1752452263164,0.03,160.98,160.97,131.77721068]
[1752452266840,0.03,160.98,160.97,221.37721068]
[1752452267052,0.03,160.98,160.97,216.39060873]
[1752452267255,0.03,160.98,160.97,199.60592476]
[1752452268654,0.03,160.98,160.97,221.37721068]
[1752452272734,0.03,160.98,160.97,216.39060873]
[1752452273045,0.03,160.98,160.97,221.37721068]
[1752452273941,0.03,160.98,160.97,228.87761937]
[1752452274134,0.03,160.98,160.97,234.88601937]
[1752452274536,0.03,161.05,161.01,42.78468397]
[1752452274735,0.03,161.05,161.04,4.98660195]
[1752452274940,0.03,161.05,161.04,62.88]
[1752452275263,0.03,161.05,161.04,67.86660195]
[1752452275466,0.74,161.05,161.04,9.9732039]
[1752452275651,0.74,161.05,161.04,72.8532039]
[1752452277647,0.03,161.05,161.04,72.8532039]
[1752452278244,0.74,161.05,161.04,72.8532039]
[1752452280968,0.74,161.05,161.04,62.88]
[1752452281264,0.74,161.05,161.04,72.8532039]
[1752452281461,0.03,161.05,161.04,72.8532039]
[1752452282680,0.03,161.05,161.04,73.3832039]
[1752452283378,0.03,161.05,161.04,100.9859039]
[1752452283677,0.03,161.05,161.04,108.80078569]
[1752452284963,0.03,161.05,161.04,108.25078569]
[1752452285147,0.75,161.05,161.04,98.8332039]
[1752452285565,0.03,161.05,161.04,98.8332039]
[1752452286351,0.03,161.05,161.04,99.3632039]
[1752452286977,0.03,161.05,161.04,101.0192039]
[1752452287174,0.03,161.05,161.04,117.80388787]
[1752452288057,0.03,161.05,161.04,91.80388787]
[1752452293272,0.03,161.05,161.04,181.40388787]
[1752452293473,0.03,161.05,161.04,189.21876966]
[1752452294588,0.03,161.05,161.04,195.51036966]
[1752452294762,0.03,161.05,161.04,207.37326086]
[1752452294965,0.03,161.05,161.04,220.37321057]
[1752452295177,0.03,161.12,161.11,9.9732039]
[1752452295490,0.03,161.12,161.11,72.8732039]
[1752452295986,0.03,161.12,161.11,116.18788787]
[1752452296291,0.03,161.12,161.11,90.18788787]
[1752452298583,0.03,161.12,161.11,98.00276966]
[1752452300486,0.03,161.12,161.11,187.60276966]
[1752452300699,0.72,161.22,161.12,16.78468397]
[1752452300995,0.72,161.21,161.2,4.98660195]
[1752452301201,0.72,161.21,161.2,94.74660195]
[1752452302278,0.72,161.21,161.2,99.7332039]
[1752452304188,0.72,161.23,161.2,99.7332039]
[1752452304496,0.72,161.22,161.2,94.74660195]
[1752452304709,6.1786,161.27,161.2,94.74660195]
[1752452305011,0.72,161.21,161.2,94.74660195]
[1752452305584,0.72,161.21,161.2,99.7332039]
[1752452305909,0.72,161.21,161.2,89.7]
[1752452306118,0.72,161.21,161.2,99.6732039]
[1752452313300,0.72,161.21,161.2,94.66660195]
[1752452314515,0.72,161.21,161.2,99.6532039]
[1752452315800,0.72,161.21,161.2,89.68]
[1752452316004,0.72,161.21,161.2,99.6532039]
[1752452317017,0.72,161.21,161.2,94.66660195]
[1752452317724,7.0383,161.21,161.12,12.80148374]
[1752452318027,2.2827,161.2,161.19,26.74]
[1752452318190,19.06738397,161.2,161.17,31.72660195]
[1752452318386,0.72,161.19,161.17,31.72660195]
[1752452318600,0.72,161.19,161.18,4.98660195]
[1752452318928,0.72,161.19,161.18,36.46660195]
[1752452330603,0.72,161.19,161.18,31.48]
[1752452330807,0.72,161.19,161.17,26.74]
[1752452330808,16.78468397,161.18,161.17,26.74]